Cogmind - Beta 9.2 @@@ ROGUE MODE // 2019.12.16 @ 02:47:22 Player: Trione Result: Destroyed by G-67 Veteran with Electrolaser Performance ------------- Evolutions (6) 3000 Regions Visited (27) 5400 Robots Destroyed (448) 2240 Value Destroyed (20276) 20276 Prototype IDs (44) 880 Alien Tech Used (0) 0 Bonus (9142) 9142 TOTAL SCORE: 40938 Bonus ------- High Alert Combat Kills 4569 Follower Combat Kills 2202 Entered Garrisons 1400 Used RIF Installer 3000 Network Hubs Disabled 800 Aligned with FarCom 300 A7 Reached Mainframe 300 Met R17 at Cetus 500 Friendly Fire -3929 Cogmind --------- Core Integrity 0/1150 Matter 52/300 Energy 45/100 System Corruption 25% Temperature Cool (0) Movement Hovering (100) Ox1 Location -4/Garrison Parts ------- > --- POWER (1) -------- (None) > --- PROPULSION (2) --- Improved Gyrokinetic Inverter > --- UTILITY (14) ----- High-capacity Storage Unit Enhanced Optical Array Advanced Hacking Suite > --- WEAPON (2) ------- (None) > --- INVENTORY (12) --- Improved Heavy Treads Centrium Heavy Treads Matter Compressor (46) Tesla Rifle EMDS Improved Proton Missile Launcher Improved Remote Datajack Phasing Sabre Peak State ------------ > --- POWER ------------ Quantum Reactor > --- PROPULSION ------- Centrium Heavy Treads > --- UTILITY ---------- Advanced Power Amplifier High-capacity Storage Unit High-capacity Storage Unit High-capacity Storage Unit High-capacity Storage Unit High-capacity Storage Unit Advanced Energy Well Advanced Signal Interpreter Experimental Phase Shifter Layered Heavy Armor Plating EM Dispersion Field > --- WEAPON ----------- EMDS > --- INVENTORY -------- Quantum Reactor Quantum Reactor Matter Compressor Inertial Stasis Machine Improved Sensor Array Advanced Terrain Scanner Experimental Targeting Computer Energy Filter Launcher Loader Layered Heavy Armor Plating Layered Heavy Armor Plating Improved Thermal Shield Improved Hacking Suite Relay Coupler [NC] Relay Coupler [Swarmer] Relay Coupler [Grunt] Relay Coupler [Grunt] Relay Coupler [Duelist] Relay Coupler [Sentry] Relay Coupler [Sentry] Relay Coupler [Specialist] Improved System Backup Module Tesla Rifle Wave Gun Advanced Variable Charge Gun EMDS Guided Plasma Cannon Improved KE Penetrator Proton Missile Launcher Improved Proton Missile Launcher Long-range Missile Launcher Mini Smartbomb Launcher Remote Datajack Phasing Sabre Spear [Rating: 122] Favorites ----------- Power Quantum Reactor Engine Improved Deuterium Engine Power Core Nuclear Core Reactor Quantum Reactor Propulsion Heavy Treads Treads Heavy Treads Wheel Compact Wheel Hover Unit Antigrav System Utility High-capacity Storage Unit Device Advanced Terrain Scanner Storage High-capacity Storage Unit Processor Advanced Signal Interpreter Hackware Relay Coupler [Grunt] Protection Layered Heavy Armor Plating Weapon Remote Datajack Energy Gun Tesla Rifle Energy Cannon Improved EM Pulse Cannon Ballistic Gun Improved KE Penetrator Ballistic Cannon Gauss Cannon Launcher Proton Missile Launcher Special Weapon Remote Datajack Slashing Weapon Phasing Sabre Piercing Weapon Spear Build | -11 -10 -10 -10 -9 -8 -8 -8 -8 -7 -7 -7 -7 -7 -7 -6 -6 -6 -6 -6 -6 -6 -5 -5 -5 -5 -4 -4 ------- Run | Scr Mat Min Exi Min Mat Gar Mat Gar Fac Was Fac Gar Fac Gar Fac Was Fac Ext Cet Arc Hub Fac Gar Fac Gar Fac Gar Slots Evolved 12 | . . . . . 4 . . . 2 . . . . . 2 . . . . . . 2 . . . 2 . Power . | . . . . . . . . . . . . . . . . . . . . . . . . . . . . Propulsion . | . . . . . . . . . . . . . . . . . . . . . . . . . . . . Utility 12 | . . . . . 4 . . . 2 . . . . . 2 . . . . . . 2 . . . 2 . Weapon . | . . . . . . . . . . . . . . . . . . . . . . . . . . . . Parts Attached 834 | 6 10 . . 4 51 5 13 14 6 12 46 9 5 38 45 8 88 11 38 10 73 5 31 130 27 138 11 Power 25 | 1 . . . 2 4 . 1 . . . 1 . . . 1 . 2 . 2 . 4 . . 2 . 4 1 Engine 9 | 1 . . . 1 4 . . . . . 1 . . . 1 . 1 . . . . . . . . . . Core 5 | . . . . 1 . . 1 . . . . . . . . . . . . . . . . . . 2 1 Reactor 11 | . . . . . . . . . . . . . . . . . 1 . 2 . 4 . . 2 . 2 . Propulsion 47 | 2 2 . . . 6 . 6 . . 2 . . . . 1 1 1 . 1 . 1 . . 9 . 15 . Treads 23 | . 2 . . . 4 . 4 . . 1 . . . . 1 1 1 . 1 . 1 . . 3 . 4 . Leg . | . . . . . . . . . . . . . . . . . . . . . . . . . . . . Wheel 7 | 2 . . . . 2 . 2 . . 1 . . . . . . . . . . . . . . . . . Hover 17 | . . . . . . . . . . . . . . . . . . . . . . . . 6 . 11 . Flight . | . . . . . . . . . . . . . . . . . . . . . . . . . . . . Utility 358 | 1 2 . . . 11 . . 1 6 5 28 2 3 21 20 3 43 3 8 5 32 4 18 70 11 60 1 Device 203 | . . . . . 3 . . . 5 3 16 . 2 10 11 . 29 2 2 1 17 1 8 48 8 36 1 Storage 29 | 1 2 . . . 3 . . 1 1 1 1 . . 3 . . 1 . 3 . . . . 5 1 6 . Processor 4 | . . . . . . . . . . . 1 . . . . . 1 . . . . . . . . 2 . Hackware 31 | . . . . . . . . . . 1 . 1 . 1 4 1 3 . . . 3 . . 7 . 10 . Protection 91 | . . . . . 5 . . . . . 10 1 1 7 5 2 9 1 3 4 12 3 10 10 2 6 . Artifact . | . . . . . . . . . . . . . . . . . . . . . . . . . . . . Weapon 404 | 2 6 . . 2 30 5 6 13 . 5 17 7 2 17 23 4 42 8 27 5 36 1 13 49 16 59 9 Energy Gun 52 | 1 . . . . 7 . . 1 . . 3 1 . 2 . . . . 2 . 2 . 3 15 5 9 1 Energy Cannon 61 | . . . . . 1 2 1 . . . 3 3 . 4 7 1 7 1 6 2 2 . 1 7 2 9 2 Ballistic Gun 78 | 1 4 . . 1 9 2 2 2 . . . . . . . . 3 1 12 3 17 . 5 7 3 6 . Ballistic Cannon 35 | . . . . . 1 . . 2 . 1 2 2 . 2 5 . 10 . . . . . . . . 9 1 Launcher 61 | . 2 . . 1 7 1 1 5 . 1 . . . 4 4 1 4 1 7 . 7 . 2 . 4 5 4 Special Weapon 43 | . . . . . . . . . . 2 2 1 1 2 4 . 6 2 . . 2 . . 8 1 12 . Impact Weapon . | . . . . . . . . . . . . . . . . . . . . . . . . . . . . Slashing Weapon 60 | . . . . . 2 . 1 3 . . 6 . 1 3 3 1 10 3 . . 5 1 2 10 1 8 . Piercing Weapon 14 | . . . . . 3 . 1 . . 1 1 . . . . 1 2 . . . 1 . . 2 . 1 1 Special Melee Weapon . | . . . . . . . . . . . . . . . . . . . . . . . . . . . . Unidentified Prototypes 16 | . . . . . 1 . 1 . . . . . . . . 1 . . 7 . 6 . . . . . . Parts Lost 92 | . 2 . . 1 16 3 2 . . . . . . 3 5 . 1 . . 2 8 . 5 3 2 22 17 Power 12 | . . . . 1 4 1 . . . . . . . . 1 . . . . . 1 . . 1 . 1 2 Propulsion 9 | . 1 . . . 2 . 1 . . . . . . . 1 . . . . . 1 . . 1 . 1 1 Utility 49 | . . . . . 5 . . . . . . . . 2 2 . 1 . . . 3 . 3 1 2 19 11 Weapon 22 | . 1 . . . 5 2 1 . . . . . . 1 1 . . . . 2 3 . 2 . . 1 3 Highest Loss Streak 17 | . 1 . . 1 4 3 2 . . . . . . 3 4 . 1 . . 1 3 . 3 2 1 13 17 Average Slot Usage (%) 89 | . 95 100 100 100 89 94 97 98 100 94 90 80 86 88 92 79 89 85 87 92 88 82 83 90 86 88 72 Engine 2 | . 14 14 14 . 6 3 . . . . . 7 7 7 6 6 5 . . . . . . . . . . Core 1 | . . . . 13 1 . 7 9 7 7 6 . . . . . . . . . . . . . . 2 1 Reactor 2 | . . . . . . . . . . . . . . . . . . 6 6 6 5 5 5 5 5 2 2 Treads 7 | . 15 28 28 28 14 . 13 18 15 7 7 7 7 7 6 6 6 6 6 6 6 5 5 3 5 3 . Device 10 | . . . . . 7 18 18 10 29 23 18 5 10 10 16 . 15 6 . 4 5 3 6 14 6 17 13 Storage 29 | . 25 28 28 28 27 36 36 43 30 30 26 23 23 27 26 26 26 26 34 33 33 29 29 30 30 28 14 Processor 4 | . . . . . . . . . . . 6 7 7 7 4 . 3 6 6 6 6 5 5 5 5 5 14 Hackware 7 | . . . . . . . . . . 6 3 6 7 4 13 19 14 13 13 13 5 5 . 9 11 13 7 Protection 5 | . . . . . 11 . . . . . 3 6 7 6 3 5 1 5 5 7 9 13 17 4 7 1 . Energy Gun 1 | . 1 . . . 3 . . 1 7 1 1 3 . 1 . . . . . . . . 6 2 5 . . Energy Cannon 1 | . . . . . . 8 3 . . . . 4 7 4 1 . 1 . 2 . . . . . 1 . . Ballistic Gun 4 | . 25 28 28 28 6 5 6 8 7 . . . . . . . 1 3 8 12 8 3 3 . . . . Special Weapon 2 | . . . . . . . . . . 6 3 1 1 2 5 6 3 4 . . . 5 . 2 1 3 1 Slashing Weapon 2 | . . . . . . . 6 3 . . 5 1 3 2 4 . 3 2 . . 1 1 . 3 . 2 2 Naked Turns . | . . . . . . . . . . . . . . . . . . . . . . . . . . . . Heaviest Build 247 | 12 73 73 73 73 120 112 116 147 115 117 160 165 165 164 197 199 204 176 214 207 240 234 240 238 247 227 110 Greatest Support 96 | 20 40 40 40 40 43 32 43 43 43 70 70 70 70 70 79 70 70 70 80 80 80 80 80 96 80 91 43 Greatest Overweight (x) 11 | . 3 1 1 1 7 3 4 3 2 11 2 2 2 2 2 2 2 2 2 2 2 2 2 10 3 5 2 Average Overweight (x) 1 | . 1 1 1 1 2 3 2 2 2 3 1 1 1 1 1 2 2 2 2 2 2 2 2 2 2 2 1 Largest Inventory Capacity 52 | 6 20 20 20 20 28 28 28 36 36 28 28 28 28 36 36 36 36 36 44 44 44 44 44 44 52 52 24 Average Capacity 35 | 5 17 20 20 20 27 28 28 34 28 28 28 28 28 32 36 36 36 36 42 44 44 44 44 44 44 37 19 Most Carried 52 | 4 17 19 20 20 28 28 28 34 33 28 28 28 28 36 36 36 36 36 44 44 44 43 44 44 52 51 24 Average Carried 34 | 2 10 18 19 19 26 26 27 30 28 27 27 27 27 31 34 35 35 36 40 43 42 40 43 43 43 35 19 Final Capacity 52 | 6 20 20 20 20 28 28 28 36 28 28 28 28 28 36 36 36 36 36 44 44 44 44 44 44 52 24 12 Final Carried 52 | 4 16 19 20 20 28 26 28 34 28 28 28 28 28 36 34 36 36 36 44 44 42 40 44 44 52 24 11 Class Distribution -------------------- 37% | Bothacker-Mutant 22% | Botlord-Mutant 20% | Hauler-Mutant 8% | Bothacker-Assassin 3% | Botlord-Assassin Dominant Class ---------------- Hauler-Mutant | -10/Materials Hauler-Mutant | -10/Mines Hauler-Mutant | -10/Exiles Hauler-Mutant | -9/Mines Hauler-Mutant | -8/Materials Hauler-Mutant | -8/Garrison Hauler-Mutant | -8/Materials Hauler-Mutant | -8/Garrison Bothacker-Mutant | -7/Factory Bothacker-Mutant | -7/Waste Bothacker-Assassin | -7/Factory Bothacker-Mutant | -7/Garrison Bothacker-Assassin | -7/Factory Bothacker-Mutant | -7/Garrison Botlord-Mutant | -6/Factory Botlord-Mutant | -6/Waste Bothacker-Mutant | -6/Factory Bothacker-Mutant | -6/Extension Bothacker-Mutant | -6/Cetus Bothacker-Mutant | -6/Archives Bothacker-Mutant | -6/Hub_04(d) Hauler-Mutant | -5/Factory Hauler-Mutant | -5/Garrison Botlord-Mutant | -5/Factory Bothacker-Mutant | -5/Garrison Botlord-Mutant | -4/Factory Scavenger-Mutant | -4/Garrison Resources | -11 -10 -10 -10 -9 -8 -8 -8 -8 -7 -7 -7 -7 -7 -7 -6 -6 -6 -6 -6 -6 -6 -5 -5 -5 -5 -4 -4 ----------- Run | Scr Mat Min Exi Min Mat Gar Mat Gar Fac Was Fac Gar Fac Gar Fac Was Fac Ext Cet Arc Hub Fac Gar Fac Gar Fac Gar Matter Collected 17495 | 269 355 30 . 65 1190 38 279 393 71 441 431 210 . 933 605 504 1828 407 756 404 1853 194 769 2346 736 2374 14 Remotely . | . . . . . . . . . . . . . . . . . . . . . . . . . . . . Salvage Created 20836 | 78 629 54 . 3 1700 138 359 371 71 1113 498 170 . 779 924 1312 1205 186 1196 479 3695 . 927 2300 613 1925 111 Parts 963 | 2 42 4 . 4 113 11 14 5 2 12 30 6 . 40 44 13 81 9 69 29 164 . 48 97 34 74 16 Haulers Intercepted 5 | . . . . . 1 . 1 . . . . . . . 1 . . . . . 2 . . . . . . Recyclers Shooed 17 | . . . . . 4 . 1 . 1 . 1 . . . 1 . 5 . . . . . . 2 . 2 . Parts Field Recycled . | . . . . . . . . . . . . . . . . . . . . . . . . . . . . Retrieved Matter . | . . . . . . . . . . . . . . . . . . . . . . . . . . . . Parts Self-Destructed . | . . . . . . . . . . . . . . . . . . . . . . . . . . . . Prevented . | . . . . . . . . . . . . . . . . . . . . . . . . . . . . Kills | -11 -10 -10 -10 -9 -8 -8 -8 -8 -7 -7 -7 -7 -7 -7 -6 -6 -6 -6 -6 -6 -6 -5 -5 -5 -5 -4 -4 ------- Run | Scr Mat Min Exi Min Mat Gar Mat Gar Fac Was Fac Gar Fac Gar Fac Was Fac Ext Cet Arc Hub Fac Gar Fac Gar Fac Gar Combat Hostiles Destroyed 353 | . 17 . . 3 44 6 4 11 . 5 7 3 . 21 14 5 24 2 16 4 53 . 20 26 20 40 8 Melee 20 | . . . . . 4 . 1 . . 4 2 . . . . 5 2 . . . . . . 1 . 1 . Guns 121 | . 11 . . . 14 . 1 2 . . 2 2 . . . . 3 2 2 4 45 . 12 14 2 5 . Cannons 60 | . . . . . 3 6 1 1 . . 2 1 . 11 5 . 12 . . . 1 . . 4 1 10 2 AOE 129 | . 6 . . 3 23 . 1 8 . 1 . . . 8 9 . 5 . 7 . 5 . 8 1 16 22 6 Classes Destroyed 19 | 1 2 . . . 8 . . . . 1 1 . . . 2 . 2 . . . 1 . 1 . . . . Worker 28 | . . . . . 4 . . . . . 2 . . . 1 . 8 . . . 10 . . . . 3 . Builder 13 | . . . . . 4 . . . . . . . . . 2 . 2 1 . . 2 . . 1 . 1 . Tunneler 1 | . . . . . . . . . . . . . . . 1 . . . . . . . . . . . . Hauler 5 | . . . . . 1 . 1 . . . . . . . 1 . . . . . 2 . . . . . . Recycler 21 | 1 1 . . . 2 . 2 . 1 . 2 . . . 2 . 1 . . . 1 . . 5 . 3 . Mechanic 3 | . . . . . . . . . . . . . . . 2 . . . . . . . . . . 1 . Operator 6 | . . . . . . . . . . . . . . . . . 1 . . 4 1 . . . . . . Watcher 12 | . . . . . 1 . 1 . . . . . . . 2 . 2 1 2 . 2 . . 1 . . . Swarmer 97 | . 6 . . 3 17 4 2 3 . . . . . 7 . . 8 . 3 . 4 . 6 2 14 10 8 Saboteur 2 | . . . . . . . . . . . . . . . . . . . . . 1 . . . . 1 . Grunt 102 | . 11 . . . 14 . . 6 . . . 1 . 8 7 . 4 2 5 . 23 . 8 3 5 5 . Brawler 8 | . . . . . 1 . . . . . . . . 1 2 . . . 1 . . . . 1 1 1 . Duelist 7 | . . . . . 1 . . . . . . . . 2 . . 2 . . . . . . 1 . 1 . Protector 4 | . . . . . . . . . . . . . . . . . 1 . . . 3 . . . . . . Sentry 39 | . . . . . 9 2 2 . . . 2 1 . 2 . . 3 . . 4 8 . 3 2 1 . . Hunter 23 | . . . . . 2 . . 2 . . 1 . . . 1 . 1 . . . 1 . 2 6 . 7 . Programmer 49 | . . . . . . . . . . . 4 1 . 1 4 . 5 . 2 . 5 . . 10 1 16 . Behemoth 2 | . . . . . . . . . . . . . . . . . . . . . . . 1 1 . . . Compactor 10 | . . . . . . . . . . 5 . . . . . 5 . . . . . . . . . . . Cetus Guard 5 | . . . . . . . . . . . . . . . . . . . 5 . . . . . . . . Lightning 8 | . . . . . . . . . . . . . . . . . . . . . 8 . . . . . . Thug 1 | . . 1 . . . . . . . . . . . . . . . . . . . . . . . . . Guerrilla 1 | . . . . . . . . . . . . . . . . . . . 1 . . . . . . . . Best Kill Streak 16 | 1 5 . . 3 11 4 3 3 1 2 2 1 . 4 6 1 9 1 4 6 7 . 6 3 10 16 8 Combat Bots Only 13 | . 5 . . 3 8 4 2 3 . 2 1 1 . 4 4 1 6 1 3 2 6 . 6 3 10 13 8 Max Kills in Single Turn 5 | 1 3 1 . 1 3 1 2 2 1 1 1 1 . 1 4 1 3 1 2 1 4 . 3 2 4 5 2 Gunslinging 1 | . . . . . . . . . . . . . . . . . . . . . 1 . . 1 . . . Exploded 4 | . 3 . . 1 3 . 1 2 . 1 . . . 1 3 . 2 . 2 . 2 . 3 1 4 3 2 Melee 1 | . . . . . 1 . 1 . . 1 1 . . . . 1 1 . . . . . . 1 . 1 . Uniques/NPCs Destroyed 1 | . . . . . . . . . . . . . . . . . . . 1 . . . . . . . . A7 (-6/Cetus) Combat | -11 -10 -10 -10 -9 -8 -8 -8 -8 -7 -7 -7 -7 -7 -7 -6 -6 -6 -6 -6 -6 -6 -5 -5 -5 -5 -4 -4 -------- Run | Scr Mat Min Exi Min Mat Gar Mat Gar Fac Was Fac Gar Fac Gar Fac Was Fac Ext Cet Arc Hub Fac Gar Fac Gar Fac Gar Damage Taken 27595 | . 518 . . 89 2552 273 169 347 . . 451 196 . 774 844 . 2043 336 502 739 4596 . 2445 3205 449 4970 2097 Core 2696 | . 151 . . 22 325 34 14 83 . . 19 . . 31 53 . 199 . 20 67 210 . 71 168 65 453 711 Absorbed by Shields 883 | . . . . . . . . . . . . 11 . . . . . . 179 . 12 . . 217 132 188 144 Reduced by Siege Mode 696 | . . . . . . . . . . . . . . 24 33 . 16 25 13 19 130 . 78 121 4 233 . Core Remaining (%) 57 | 100 . . . 30 . . . 17 . . . . . 92 . . . . . . 35 . . . 69 . . Volleys Fired 1234 | 3 42 5 . 3 113 26 14 49 5 31 32 19 3 50 59 19 86 28 82 36 169 . 57 120 34 136 13 Largest 2 | 2 2 2 . 1 2 2 2 2 1 1 2 2 1 2 2 1 2 1 2 2 2 . 2 2 2 2 1 Hottest 170 | 60 40 40 . 30 115 110 100 67 50 44 118 128 80 143 170 90 138 69 138 138 125 . 125 146 130 130 120 Shots Fired 1770 | 6 79 10 . 3 198 45 24 54 5 31 41 23 3 61 69 19 121 28 105 71 297 . 94 173 44 154 12 Gun 1016 | 6 75 10 . . 157 6 12 25 5 . 10 9 . 16 . . 24 3 69 65 260 . 76 125 27 35 1 Cannon 396 | . . . . . 15 38 8 5 . 10 23 6 1 32 30 6 81 7 17 6 10 . 10 22 5 60 4 Launcher 173 | . 4 . . 3 26 1 4 24 . 3 . . . 12 11 . 6 . 19 . 23 . 8 . 12 10 7 Special 185 | . . . . . . . . . . 18 8 8 2 1 28 13 10 18 . . 4 . . 26 . 49 . Kinetic 942 | 3 75 10 . . 134 21 12 14 . 10 12 2 . 12 10 . 80 3 67 65 235 . 68 47 9 53 . Thermal 188 | 3 . . . . 11 18 8 . . . . 1 1 3 7 6 3 . 2 . 35 . 18 44 8 16 4 Explosive 134 | . 4 . . 3 23 . 4 24 . 3 . . . 6 11 . 6 . 2 . 19 . 8 . 8 9 4 Electromagnetic 321 | . . . . . 30 6 . 16 5 . 21 12 . 39 13 . 22 7 34 6 4 . . 56 19 27 4 Robot Hit Streak 35 | 3 10 13 . 3 11 15 8 9 3 14 11 12 2 12 13 14 20 22 12 19 35 . 27 33 12 17 9 Robot Miss Streak 4 | 2 3 2 . . 4 3 1 3 2 1 3 1 1 2 1 1 3 1 2 2 3 . 2 3 2 4 . Penetration Max 2 | . . . . . . . . . . . . . . . . . 1 1 . 1 2 . 1 1 . 1 . Secondary Targets 13 | . 3 . . . . . . . . . . . . . . . . . . . 9 . . 1 . . . Max Gunslinging Chain 1 | . 1 . . . . . . . . . . . . . . . . . . . 1 . . 1 . . . Shots Hit Robots 1380 | 4 53 7 . 1 134 27 14 26 3 57 44 20 2 35 59 55 109 27 69 60 223 . 68 144 26 110 3 Core Hits 804 | 2 33 4 . 3 98 6 10 28 1 14 13 5 . 34 44 12 60 6 50 23 164 . 35 45 31 75 8 Critical Hits 138 | . . . . . 4 . . 1 . 3 3 1 . 4 . 1 14 2 10 7 52 . 17 13 1 5 . Critical Kills 54 | . . . . . 1 . . . . . 2 1 . 2 . . 6 2 1 1 24 . 7 4 . 3 . Critical Parts Destroyed 71 | . . . . . 3 . . 1 . 1 1 . . 1 . 1 8 . 5 5 27 . 6 9 1 2 . Melee Attacks 461 | . . . . . 69 . 9 4 . 32 63 . 7 8 19 37 78 1 . . 30 3 3 56 . 40 2 Impact . | . . . . . . . . . . . . . . . . . . . . . . . . . . . . Slashing 285 | . . . . . 7 . 5 3 . . 40 . 7 8 19 . 66 1 . . 30 3 3 55 . 38 . Piercing 176 | . . . . . 62 . 4 1 . 32 23 . . . . 37 12 . . . . . . 1 . 2 2 Sneak Attacks 94 | . . . . . 1 . . . . 32 6 . . . 4 37 6 . . . 2 . . 4 . 2 . Combat Hostiles 69 | . . . . . . . . . . 32 . . . . . 37 . . . . . . . . . . . Follow-up Attacks 3 | . . . . . 3 . . . . . . . . . . . . . . . . . . . . . . Damage Inflicted 57101 | 52 991 90 . 188 4184 504 517 1811 86 2032 1449 282 25 1781 3431 1663 4487 253 2829 1491 9984 . 3085 4913 3088 7143 742 Guns 16003 | 52 640 90 . . 1357 62 83 320 56 . 142 158 . 252 . . 120 27 909 1341 4679 . 1614 2925 511 665 . Cannons 9477 | . . . . . 166 442 175 91 . 218 550 124 25 599 769 177 1619 107 299 150 229 . 330 902 82 2314 109 Explosions 24199 | . 345 . . 188 2130 . 235 1400 30 464 . . . 930 2157 . 1346 119 1621 . 4767 . 1103 370 2495 3866 633 Melee 7399 | . . . . . 531 . 24 . . 1350 757 . . . 505 1486 1402 . . . 309 . 38 716 . 281 . Ramming 23 | . 6 . . . . . . . . . . . . . . . . . . . . . . . . 17 . Kinetic 15254 | 28 640 90 . . 1131 204 83 159 . 218 322 32 . 275 227 . 1196 27 863 1341 4173 . 1451 1097 228 1469 . Thermal 7281 | 24 . . . . 420 300 175 102 30 . . 30 25 246 694 177 272 119 147 . 821 . 493 1148 431 1518 109 Explosive 17209 | . 345 . . 188 1637 . 235 1298 . 464 . . . 502 1703 . 1151 . 358 . 2634 . 1103 256 1869 2833 633 Electromagnetic 9935 | . . . . . 465 . . 252 56 . 370 220 . 758 302 . 466 107 1461 150 2047 . . 1696 560 1025 . Impact . | . . . . . . . . . . . . . . . . . . . . . . . . . . . . Slashing 3594 | . . . . . 43 . . . . . 439 . . . 505 . 1320 . . . 309 . 38 716 . 224 . Piercing 3805 | . . . . . 488 . 24 . . 1350 318 . . . . 1486 82 . . . . . . . . 57 . Highest Corruption 27 | . . . . . . . . . . . 2 2 . . 11 8 8 1 1 1 11 . . 5 3 27 25 Average Corruption 6 | . . . . . . . . . . . 2 1 . . 5 7 5 1 1 1 2 . . 2 1 19 23 Corruption Purged 39 | . . . . . . . . . . . . 2 . . 4 . 10 . . 1 1 . . 8 3 10 . Effects 371 | . . . . . . . . . . . 1 . . . 23 19 75 . 4 2 31 . . 38 5 161 12 Message Errors 81 | . . . . . . . . . . . 1 . . . 4 5 17 . 1 . 8 . . 15 . 28 2 Matter Fused 58 | . . . . . . . . . . . . . . . 2 5 14 . . . 4 . . 6 2 23 2 Heat Flow Errors 25 | . . . . . . . . . . . . . . . 3 . 7 . . . 1 . . 5 . 9 . Energy Discharges 49 | . . . . . . . . . . . . . . . 4 3 16 . . 1 3 . . 5 . 15 2 Parts Rejected 4 | . . . . . . . . . . . . . . . . . . . . . 2 . . . . 2 . Data Loss (minor) 29 | . . . . . . . . . . . . . . . 1 2 8 . . . 3 . . 7 1 7 . Data Loss (major) 8 | . . . . . . . . . . . . . . . . 1 1 . . . 1 . . . . 5 . Misfires 4 | . . . . . . . . . . . . . . . 1 . 1 . . . . . . . . 2 . Alerts 5 | . . . . . . . . . . . . . . . 1 . . . . . . . . . . 4 . Misdirections 27 | . . . . . . . . . . . . . . . 1 . . . . . . . . . . 25 1 Targeting Errors 72 | . . . . . . . . . . . . . . . 6 3 10 . 3 1 8 . . . 1 36 4 Weapon Failures 9 | . . . . . . . . . . . . . . . . . 1 . . . 1 . . . 1 5 1 Overload Shots . | . . . . . . . . . . . . . . . . . . . . . . . . . . . . Overflow Damage 2363 | . 29 . . 2 98 20 . 41 . . 143 . . 78 285 . 269 . 83 . 349 . 78 255 198 407 28 Projectiles 266 | . . . . . . 20 . 21 . . 18 . . 26 23 . 32 . . . 2 . . 18 . 106 . Explosions 1208 | . 29 . . 2 14 . . 20 . . . . . 52 262 . 27 . 83 . 158 . 78 38 198 219 28 Melee 889 | . . . . . 84 . . . . . 125 . . . . . 210 . . . 189 . . 199 . 82 . Knockbacks 21 | . . . . . . . . 1 . . 4 . . 1 1 . 6 . . . . . . . . 8 . Impact . | . . . . . . . . . . . . . . . . . . . . . . . . . . . . Kinetic 20 | . . . . . . . . 1 . . 3 . . 1 1 . 6 . . . . . . . . 8 . Secondary 1 | . . . . . . . . . . . 1 . . . . . . . . . . . . . . . . Self-Inflicted Damage 1026 | . 45 . . 25 140 . . 56 . . . . . . 11 . 195 . . . 17 . 40 250 33 68 146 Shots 33 | . 2 . . 2 7 . . 2 . . . . . . 1 . 3 . . . 3 . 1 4 1 3 4 Rammed 2 | . 1 . . . . . . . . . . . . . . . . . . . . . . . . 1 . Targets Rammed 2 | . 1 . . . . . . . . . . . . . . . . . . . . . . . . 1 . Kicked . | . . . . . . . . . . . . . . . . . . . . . . . . . . . . Crushed . | . . . . . . . . . . . . . . . . . . . . . . . . . . . . Highest Temperature 477 | . 2 . . . 231 20 57 . . . 315 255 56 282 312 369 330 200 216 150 477 . 344 448 402 268 289 Average Temperature 105 | . 2 . . . 83 7 19 . . . 117 100 25 85 153 145 105 55 78 53 119 . 139 124 105 62 106 Received Heat Transfer 4494 | . 213 . . . 783 27 45 27 . . 108 69 . 90 309 . 372 60 94 144 1260 . 414 120 48 176 135 Effects 19 | . . . . . . . . . . . . . . 2 3 1 1 . . . 4 . 4 2 2 . . Shutdowns 5 | . . . . . . . . . . . . . . . . 1 . . . . 3 . . . 1 . . Energy Bleed 3 | . . . . . . . . . . . . . . . . . . . . . . . 1 2 . . . Interference 9 | . . . . . . . . . . . . . . 2 3 . 1 . . . . . 3 . . . . Damage (minor) 2 | . . . . . . . . . . . . . . . . . . . . . 1 . . . 1 . . Siege Activations 74 | . . . . . . . . . . . 2 1 . 4 4 . 9 1 4 2 16 . 5 11 4 11 . Total Turns 1207 | . . . . . . . . . . . 9 2 . 39 60 . 134 13 41 76 380 . 105 158 36 154 . Longest Duration 97 | . . . . . . . . . . . 5 2 . 12 23 . 36 13 13 59 97 . 69 29 15 30 . Robots Corrupted 29 | . . . . . . . . 2 . . 1 . . 2 . . 2 . 7 . 4 . . 7 1 3 . Combat Hostiles 23 | . . . . . . . . . . . 1 . . 2 . . 2 . 7 . 2 . . 6 1 2 . Parts Fried 69 | . . . . . . . . 1 . . 7 2 . 4 1 . 4 . 9 1 13 . . 18 1 8 . Impact Corruptions . | . . . . . . . . . . . . . . . . . . . . . . . . . . . . Robots Melted . | . . . . . . . . . . . . . . . . . . . . . . . . . . . . Combat Hostiles . | . . . . . . . . . . . . . . . . . . . . . . . . . . . . Parts Melted 16 | . . . . . . . . . . . . . . . 1 . 1 1 1 . 2 . . 4 2 4 . Heat Transferred 8566 | 50 . . . . 472 444 259 150 . . . 50 50 300 621 222 350 100 124 . 1078 . 592 1382 422 1660 240 Parts Sabotaged 5 | . . . . . . . . . . . . . . . . . . . . . 2 . . . . 3 . Parts Stolen . | . . . . . . . . . . . . . . . . . . . . . . . . . . . . Parts Stripped . | . . . . . . . . . . . . . . . . . . . . . . . . . . . . Power Chain Reactions 13 | . . . . . 2 . . 2 1 . . . . 2 . . . 1 2 . 2 . . . 1 . . Missiles Intercepted . | . . . . . . . . . . . . . . . . . . . . . . . . . . . . Alert | -11 -10 -10 -10 -9 -8 -8 -8 -8 -7 -7 -7 -7 -7 -7 -6 -6 -6 -6 -6 -6 -6 -5 -5 -5 -5 -4 -4 ------- Run | Scr Mat Min Exi Min Mat Gar Mat Gar Fac Was Fac Gar Fac Gar Fac Was Fac Ext Cet Arc Hub Fac Gar Fac Gar Fac Gar Peak Influence 1925 | 5 353 94 . 90 769 699 521 628 339 414 248 120 69 758 725 618 842 407 497 280 1925 937 1252 1002 1284 1219 828 Average Influence 455 | . 194 94 . 88 284 622 442 417 334 278 82 70 64 515 456 404 437 166 267 156 600 934 1020 403 1025 856 746 Maximum Alert Level 5 | . 1 . . . 3 2 2 2 1 2 1 . . 3 3 2 3 2 2 1 5 3 4 3 4 4 3 Low Security (%) 25 | 100 50 100 . 100 42 . . . . 26 80 100 100 7 . 15 3 69 20 64 35 . . 6 . . . Level 1 28 | . 49 . . . 32 . 16 38 100 49 19 . . 28 25 15 48 23 73 35 14 . . 63 . . . Level 2 21 | . . . . . 22 100 83 61 . 24 . . . 33 73 69 25 7 5 . 15 . 5 15 . 11 35 Level 3 17 | . . . . . 3 . . . . . . . . 31 . . 21 . . . 11 100 38 14 50 74 64 Level 4 6 | . . . . . . . . . . . . . . . . . . . . . 13 . 55 . 48 13 . Level 5 . | . . . . . . . . . . . . . . . . . . . . . 8 . . . . . . High Security . | . . . . . . . . . . . . . . . . . . . . . . . . . . . . Max Security . | . . . . . . . . . . . . . . . . . . . . . . . . . . . . Squads Dispatched 81 | . 4 . . . 9 . . . . . 4 . . . 7 . 17 1 . . 14 . . 10 . 15 . Investigation 11 | . 3 . . . . . . . . . . . . . 1 . 4 . . . 2 . . 1 . . . Extermination 25 | . . . . . . . . . . . 3 . . . 1 . 6 . . . 3 . . 5 . 7 . Reinforcement 23 | . 1 . . . 5 . . . . . 1 . . . 3 . 2 1 . . 6 . . 1 . 3 . Assault 11 | . . . . . . . . . . . . . . . 1 . 2 . . . 3 . . . . 5 . Garrison 11 | . . . . . 4 . . . . . . . . . 1 . 3 . . . . . . 3 . . . Intercept . | . . . . . . . . . . . . . . . . . . . . . . . . . . . . Construction Impeded 9 | . . . . . 3 . . . . . . . . . 1 . 1 . . . 1 . . . . 3 . Haulers Reinforced 4 | . . . . . . . . . . . . . . . 1 . . . . . 3 . . . . . . Stealth | -11 -10 -10 -10 -9 -8 -8 -8 -8 -7 -7 -7 -7 -7 -7 -6 -6 -6 -6 -6 -6 -6 -5 -5 -5 -5 -4 -4 --------- Run | Scr Mat Min Exi Min Mat Gar Mat Gar Fac Was Fac Gar Fac Gar Fac Was Fac Ext Cet Arc Hub Fac Gar Fac Gar Fac Gar Distress Signals 22 | . . . . 1 4 . 1 . . . 1 . . . 3 . 1 2 2 . 5 . . . . 2 . Communications Jammed . | . . . . . . . . . . . . . . . . . . . . . . . . . . . . Distress Signals . | . . . . . . . . . . . . . . . . . . . . . . . . . . . . Times Spotted 629 | . 23 . . 4 65 6 7 11 . 6 11 12 . 21 29 6 58 15 27 17 122 1 18 49 26 78 17 Peak Tracking Total 17 | . 5 . . 4 6 5 4 3 . 3 2 4 . 5 7 3 6 3 5 1 17 1 7 5 8 17 11 Tactical Retreats 53 | . . . . . 2 1 . . . . . 4 . 1 3 . 3 . . . 20 . 3 2 11 3 . Traps | -11 -10 -10 -10 -9 -8 -8 -8 -8 -7 -7 -7 -7 -7 -7 -6 -6 -6 -6 -6 -6 -6 -5 -5 -5 -5 -4 -4 ------- Run | Scr Mat Min Exi Min Mat Gar Mat Gar Fac Was Fac Gar Fac Gar Fac Was Fac Ext Cet Arc Hub Fac Gar Fac Gar Fac Gar Traps Triggered 47 | . 3 . . . . 4 . 3 1 . 3 3 . 2 1 . 2 1 . . 6 . 7 2 5 2 2 Indirectly 3 | . . . . . . . . . . . . . . . . . . . . . 1 . . . . 1 1 Trap Hack Attempts . | . . . . . . . . . . . . . . . . . . . . . . . . . . . . Triggered . | . . . . . . . . . . . . . . . . . . . . . . . . . . . . Disarmed . | . . . . . . . . . . . . . . . . . . . . . . . . . . . . Reprogrammed . | . . . . . . . . . . . . . . . . . . . . . . . . . . . . Reused . | . . . . . . . . . . . . . . . . . . . . . . . . . . . . Traps Extracted . | . . . . . . . . . . . . . . . . . . . . . . . . . . . . Installed . | . . . . . . . . . . . . . . . . . . . . . . . . . . . . Triggered 1 | . . . . . . . . . . . . 1 . . . . . . . . . . . . . . . Machines | -11 -10 -10 -10 -9 -8 -8 -8 -8 -7 -7 -7 -7 -7 -7 -6 -6 -6 -6 -6 -6 -6 -5 -5 -5 -5 -4 -4 ---------- Run | Scr Mat Min Exi Min Mat Gar Mat Gar Fac Was Fac Gar Fac Gar Fac Was Fac Ext Cet Arc Hub Fac Gar Fac Gar Fac Gar Machines Disabled 97 | . 1 . . 2 3 . . 4 . . . 1 . 4 6 . 9 2 3 3 38 . 3 5 4 9 . Max in Single Turn 17 | . 1 . . 2 1 . . 2 . . . 1 . 1 4 . 4 . 2 1 17 . 1 3 1 4 . Garrison Access 4 | . . . . . . . . . . . . . . . 1 . . . . . 1 . . 2 . . . Garrison Relay 7 | . . . . . . . . 1 . . . . . 2 . . . . . . . . 2 . 2 . . Phase Generator 1 | . . . . . . . . . . . . . . 1 . . . . . . . . . . . . . Network Hub 4 | . . . . . . . . . . . . . . . . . . . . . 4 . . . . . . Machines Sabotaged . | . . . . . . . . . . . . . . . . . . . . . . . . . . . . Garrisons Compromised . | . . . . . . . . . . . . . . . . . . . . . . . . . . . . Overloaded Fab Kills . | . . . . . . . . . . . . . . . . . . . . . . . . . . . . Fab Network Shutdowns 1 | . . . . . . . . . . . . . . . . . . . . . . . . 1 . . . Hacking | -11 -10 -10 -10 -9 -8 -8 -8 -8 -7 -7 -7 -7 -7 -7 -6 -6 -6 -6 -6 -6 -6 -5 -5 -5 -5 -4 -4 --------- Run | Scr Mat Min Exi Min Mat Gar Mat Gar Fac Was Fac Gar Fac Gar Fac Was Fac Ext Cet Arc Hub Fac Gar Fac Gar Fac Gar Machines Accessed 90 | . 5 . 1 . 5 . 2 . 1 . 6 . 3 . 6 . 14 10 4 1 9 1 . 14 . 8 . Terminals 53 | . 5 . . . 3 . 1 . 1 . 2 . 1 . 3 . 8 9 4 . 8 . . 3 . 5 . Fabricators 6 | . . . . . . . . . . . 1 . . . 1 . 2 . . . . . . 1 . 1 . Repair Stations 5 | . . . . . . . . . . . . . . . . . 1 1 . . . . . 2 . 1 . Recycling Units 4 | . . . . . . . . . . . 1 . . . 1 . . . . . . . . 2 . . . Scanalyzers 8 | . . . . . 1 . . . . . 1 . 1 . . . 2 . . . . . . 3 . . . Garrison Access 12 | . . . . . 1 . 1 . . . 1 . 1 . 1 . 1 . . . 1 1 . 3 . 1 . Total Hacks 289 | . 9 . 1 . 13 . 3 . 3 . 10 . 4 . 12 . 38 33 13 25 21 1 . 68 . 35 . Successful 167 | . 7 . 1 . 10 . 2 . 1 . 6 . 3 . 5 . 16 21 7 25 9 1 . 40 . 13 . Failed 122 | . 2 . . . 3 . 1 . 2 . 4 . 1 . 7 . 22 12 6 . 12 . . 28 . 22 . Catastrophic 33 | . . . . . . . . . . . 1 . 1 . 2 . 6 4 1 . 2 . . 7 . 9 . Database Lockouts . | . . . . . . . . . . . . . . . . . . . . . . . . . . . . Manual 118 | . 8 . 1 . 6 . 2 . 3 . 2 . . . 5 . 13 22 11 . 15 . . 18 . 12 . Terminals 166 | . 9 . . . 9 . 2 . 3 . 3 . 1 . 7 . 21 31 13 . 20 . . 26 . 21 . Fabricators 19 | . . . . . . . . . . . 2 . . . 2 . 7 . . . . . . 4 . 4 . Repair Stations 31 | . . . . . . . . . . . . . . . . . 4 2 . . . . . 16 . 9 . Recycling Units 6 | . . . . . . . . . . . 2 . . . 2 . . . . . . . . 2 . . . Scanalyzers 26 | . . . . . 3 . . . . . 2 . 2 . . . 4 . . . . . . 15 . . . Garrison Access 15 | . . . . . 1 . 1 . . . 1 . 1 . 1 . 2 . . . 1 1 . 5 . 1 . Terminal Hacks 71 | . 5 . 1 . 4 . . . . . 1 . . . 1 . 1 14 4 25 3 . . 7 . 5 . Record 26 | . 1 . . . . . . . . . . . . . . . . . . 25 . . . . . . . Part Schematic 5 | . 2 . . . . . . . . . . . . . . . . 1 . . . . . 2 . . . Robot Analysis 3 | . . . . . . . . . . . . . . . . . . 1 2 . . . . . . . . Prototype ID Bank 1 | . . . . . . . . . . . . . . . . . . . . . . . . 1 . . . Open Door 5 | . . . . . . . . . . . . . . . . . . 5 . . . . . . . . . Machine Index 1 | . . . . . . . . . . . . . . . . . . . . . . . . 1 . . . Terminal Index 3 | . . . . . . . . . . . . . . . . . . 1 . . 1 . . . . 1 . Scanalyzer Index 2 | . . . . . 1 . . . . . . . . . . . 1 . . . . . . . . . . Unreport Threat 9 | . . . . . . . . . . . . . . . . . . 3 1 . . . . 2 . 3 . Locate Traps 5 | . . . . . 1 . . . . . 1 . . . . . . 1 . . . . . 1 . 1 . Recall Reinforcements 1 | . . . . . . . . . . . . . . . . . . 1 . . . . . . . . . Hauler Manifests 1 | . . . . . . . . . . . . . . . 1 . . . . . . . . . . . . Zone Layout 8 | . 2 . . . 2 . . . . . . . . . . . . 1 1 . 2 . . . . . . EX-Prototype ID Bank 1 | . . . 1 . . . . . . . . . . . . . . . . . . . . . . . . Fabricator Hacks 11 | . . . . . . . . . . . . . . . 1 . 4 . . . . . . 4 . 2 . Load Schematic 7 | . . . . . . . . . . . . . . . 1 . 3 . . . . . . 2 . 1 . Build 4 | . . . . . . . . . . . . . . . . . 1 . . . . . . 2 . 1 . Repair Station Hacks 16 | . . . . . . . . . . . . . . . . . 2 2 . . . . . 8 . 4 . Scan Component 9 | . . . . . . . . . . . . . . . . . 1 1 . . . . . 5 . 2 . Repair 7 | . . . . . . . . . . . . . . . . . 1 1 . . . . . 3 . 2 . Recycling Unit Hacks 3 | . . . . . . . . . . . 1 . . . . . . . . . . . . 2 . . . Retrieve Components 3 | . . . . . . . . . . . 1 . . . . . . . . . . . . 2 . . . Scanalyzer 18 | . . . . . 3 . . . . . 2 . 2 . . . 2 . . . . . . 9 . . . Insert Component 10 | . . . . . 2 . . . . . 1 . 1 . . . 1 . . . . . . 5 . . . Analyze 8 | . . . . . 1 . . . . . 1 . 1 . . . 1 . . . . . . 4 . . . Garrison Access Hacks 14 | . . . . . 1 . 1 . . . 1 . 1 . 1 . 1 . . . 1 1 . 5 . 1 . Unlock Access 7 | . . . . . 1 . 1 . . . 1 . 1 . . . . . . . . 1 . 1 . 1 . Seal Access 4 | . . . . . . . . . . . . . . . 1 . . . . . 1 . . 2 . . . Coupler Status 3 | . . . . . . . . . . . . . . . . . 1 . . . . . . 2 . . . Unauthorized Hacks 99 | . 4 . . . 5 . 2 . 2 . 3 . . . 6 . 14 13 7 . 19 . . 15 . 9 . Terminals 31 | . 2 . . . 2 . 1 . 1 . . . . . 1 . 5 5 3 . 5 . . 5 . 1 . Track 13 | . 2 . . . 1 . 1 . . . . . . . 1 . 2 . 1 . 3 . . 2 . . . Botnet 14 | . . . . . 1 . . . 1 . . . . . . . 2 3 2 . 2 . . 2 . 1 . Operators 4 | . . . . . . . . . . . . . . . . . 1 2 . . . . . 1 . . . Fabricators 1 | . . . . . . . . . . . 1 . . . . . . . . . . . . . . . . Haulers 1 | . . . . . . . . . . . 1 . . . . . . . . . . . . . . . . Repair Stations . | . . . . . . . . . . . . . . . . . . . . . . . . . . . . Recycling Units 1 | . . . . . . . . . . . . . . . 1 . . . . . . . . . . . . Recyclers 1 | . . . . . . . . . . . . . . . 1 . . . . . . . . . . . . Scanalyzers . | . . . . . . . . . . . . . . . . . . . . . . . . . . . . Garrison Access 1 | . . . . . . . . . . . . . . . . . 1 . . . . . . . . . . Eject 1 | . . . . . . . . . . . . . . . . . 1 . . . . . . . . . . Data Cores Recovered . | . . . . . . . . . . . . . . . . . . . . . . . . . . . . Used . | . . . . . . . . . . . . . . . . . . . . . . . . . . . . Hacking Detections 67 | . 3 . . . 2 . 1 . 1 . 5 . 3 . 5 . 12 9 2 . 8 1 . 9 . 6 . Full Trace Events 4 | . . . . . . . . . . . . . . . . . 2 . . . 1 . . 1 . . . Feedback Events 1 | . . . . . . . . . . . . . . . . . . . . . . . . 1 . . . Corruption 1 | . . . . . . . . . . . . . . . . . . . . . . . . 1 . . . Feedback Blocked . | . . . . . . . . . . . . . . . . . . . . . . . . . . . . Robot Schematics Acquired . | . . . . . . . . . . . . . . . . . . . . . . . . . . . . Robots Built . | . . . . . . . . . . . . . . . . . . . . . . . . . . . . Matter . | . . . . . . . . . . . . . . . . . . . . . . . . . . . . Time . | . . . . . . . . . . . . . . . . . . . . . . . . . . . . Total Robot Build Rating . | . . . . . . . . . . . . . . . . . . . . . . . . . . . . Part Schematics Acquired 13 | . 2 . . . 1 . . . . . 1 . 1 . . . 1 1 . . . . . 6 . . . Parts Built 5 | . . . . . . . . . . . . . . . . . 2 . . . . . . 2 . 1 . Matter 983 | . . . . . . . . . . . . . . . . . 212 . . . . . . 486 . 285 . Time 283 | . . . . . . . . . . . . . . . . . 106 . . . . . . 127 . 50 . Total Part Build Rating 26 | . . . . . . . . . . . . . . . . . 12 . . . . . . 9 . 5 . Parts Repaired 7 | . . . . . . . . . . . . . . . . . 1 1 . . . . . 3 . 2 . Time 484 | . . . . . . . . . . . . . . . . . 89 44 . . . . . 140 . 211 . Parts Recycled . | . . . . . . . . . . . . . . . . . . . . . . . . . . . . Recycled Matter . | . . . . . . . . . . . . . . . . . . . . . . . . . . . . Retrieved Matter . | . . . . . . . . . . . . . . . . . . . . . . . . . . . . Retrieved Components 13 | . . . . . . . . . . . 9 . . . . . . . . . . . . 4 . . . Parts Scanalyzed 8 | . . . . . 1 . . . . . 1 . 1 . . . 1 . . . . . . 4 . . . Part Schematics Acquired 8 | . . . . . 1 . . . . . 1 . 1 . . . 1 . . . . . . 4 . . . Parts Damaged 2 | . . . . . . . . . . . . . . . . . 1 . . . . . . 1 . . . Bothacking | -11 -10 -10 -10 -9 -8 -8 -8 -8 -7 -7 -7 -7 -7 -7 -6 -6 -6 -6 -6 -6 -6 -5 -5 -5 -5 -4 -4 ------------ Run | Scr Mat Min Exi Min Mat Gar Mat Gar Fac Was Fac Gar Fac Gar Fac Was Fac Ext Cet Arc Hub Fac Gar Fac Gar Fac Gar Used RIF Installer 6 | . . . . . . 1 . 1 . . . 1 . 1 . . . . . . . . 1 . 1 . . Coupler Efficiency 1 | . . . . . . . . 1 . . . . . . . . . . . . . . . . . . . Program Shield 1 | . . . . . . . . . . . . . . . . . . . . . . . 1 . . . . Autooverride 2 | . . . . . . . . . . . . 1 . 1 . . . . . . . . . . . . . Autoassimilate 1 | . . . . . . . . . . . . . . . . . . . . . . . . . 1 . . Robots Hacked 86 | . . . . . . . . . . 6 3 3 . 1 17 6 8 2 2 . 5 . . 12 3 18 . Non-combat 19 | . . . . . . . . . . . 3 . . . 7 . 2 . . . 1 . . 3 . 3 . Combat 67 | . . . . . . . . . . 6 . 3 . 1 10 6 6 2 2 . 4 . . 9 3 15 . Autooverrided 18 | . . . . . . . . . . . . . . . 2 . 4 2 2 . 3 . . 2 3 . . Autoassimilated 6 | . . . . . . . . . . . . . . . . . . . . . . . . . . 6 . Robot Hacks Applied 89 | . . . . . . . . . . 13 5 7 . 1 16 12 5 . . . 2 . . 13 . 15 . parse_system 13 | . . . . . . . . . . 7 . . . . . 6 . . . . . . . . . . . generate_echo 1 | . . . . . . . . . . . 1 . . . . . . . . . . . . . . . . find_chute 1 | . . . . . . . . . . . . . . . 1 . . . . . . . . . . . . ignore_repairs 7 | . . . . . . . . . . . . . . . 4 . . . . . 1 . . 2 . . . find_fabricator 2 | . . . . . . . . . . . 1 . . . . . . . . . . . . . . 1 . drop_inventory 3 | . . . . . . . . . . . 1 . . . . . 1 . . . . . . . . 1 . find_recycling 1 | . . . . . . . . . . . . . . . 1 . . . . . . . . . . . . purge_threat 2 | . . . . . . . . . . . . . . . . . . . . . . . . 2 . . . block_reporting 1 | . . . . . . . . . . . . . . . . . . . . . . . . 1 . . . map_route 4 | . . . . . . . . . . . 1 . . . 1 . 1 . . . . . . . . 1 . ignore_targets 12 | . . . . . . . . . . 6 . . . . . 6 . . . . . . . . . . . find_garrison 1 | . . . . . . . . . . . . . . . . . . . . . . . . . . 1 . link_fov 1 | . . . . . . . . . . . . . . . 1 . . . . . . . . . . . . scatter_targeting 3 | . . . . . . . . . . . . 1 . . . . . . . . . . . 2 . . . overload_power 3 | . . . . . . . . . . . . 1 . . . . . . . . . . . . . 2 . amplify_resonance 3 | . . . . . . . . . . . . 3 . . . . . . . . . . . . . . . reboot_system 4 | . . . . . . . . . . . . 1 . 1 1 . 1 . . . . . . . . . . go_dormant 1 | . . . . . . . . . . . . 1 . . . . . . . . . . . . . . . overwrite_iff 2 | . . . . . . . . . . . . . . . 2 . . . . . . . . . . . . formatsys_low 2 | . . . . . . . . . . . 1 . . . . . . . . . . . . 1 . . . formatsys_high 22 | . . . . . . . . . . . . . . . 5 . 2 . . . 1 . . 5 . 9 . Relay Couplers Released 32 | . . . . . . . . 3 . . . . . 7 . . 3 . . . . . 9 . 10 . . Ejected 3 | . . . . . . . . . . . . . . . . . 3 . . . . . . . . . . Machine Destruction 29 | . . . . . . . . 3 . . . . . 7 . . . . . . . . 9 . 10 . . Attached 27 | . . . . . . . . . . 1 . 1 . 1 4 1 3 . . . 2 . . 5 . 9 . Robots Rewired 7 | . . . . . . . . . . . . . . . . . . 7 . . . . . . . . . Allies Hacked 1 | . . . . . . . . . . . . . . . . . . . . . . . . . . 1 . Hacks Repelled . | . . . . . . . . . . . . . . . . . . . . . . . . . . . . Allies | -11 -10 -10 -10 -9 -8 -8 -8 -8 -7 -7 -7 -7 -7 -7 -6 -6 -6 -6 -6 -6 -6 -5 -5 -5 -5 -4 -4 -------- Run | Scr Mat Min Exi Min Mat Gar Mat Gar Fac Was Fac Gar Fac Gar Fac Was Fac Ext Cet Arc Hub Fac Gar Fac Gar Fac Gar Total Allies 61 | . . . . . . . . . . . 1 . . . 9 . 5 14 2 . 4 . . 8 3 15 . Largest Group 10 | . . . . . . . . . . . 1 . . . 3 1 2 10 5 . 1 . . 3 1 4 . Highest-Rated Group 368 | . . . . . . . . . . . 10 . . . 105 32 58 368 280 . 47 . . 36 29 201 . Highest-Rated Ally 156 | . . . . . . . . . . . 10 . . . 47 32 32 156 156 . 47 . . 30 29 60 . Total Orders 15 | . . . . . . . . . . . . . . . . . . 1 . . . . . 11 . 3 . STAY 3 | . . . . . . . . . . . . . . . . . . 1 . . . . . 1 . 1 . GOTO 8 | . . . . . . . . . . . . . . . . . . . . . . . . 7 . 1 . FOLLOW 4 | . . . . . . . . . . . . . . . . . . . . . . . . 3 . 1 . Ally Attacks 462 | . . . . . . . . . . . . . . . 57 17 38 163 59 . 12 . . 36 4 76 . Total Damage 11358 | . . . . . . . . . . . . . . . 1283 900 952 3269 1513 . 302 . . 672 56 2411 . Kills 63 | . . . . . . . . . . . . . . . 7 1 8 19 10 . 1 . . 6 . 11 . Allies Corrupted 4 | . . . . . . . . . . . . . . . . . . . . . 1 . . . . 3 . Allies Melted . | . . . . . . . . . . . . . . . . . . . . . . . . . . . . Intel | -11 -10 -10 -10 -9 -8 -8 -8 -8 -7 -7 -7 -7 -7 -7 -6 -6 -6 -6 -6 -6 -6 -5 -5 -5 -5 -4 -4 ------- Run | Scr Mat Min Exi Min Mat Gar Mat Gar Fac Was Fac Gar Fac Gar Fac Was Fac Ext Cet Arc Hub Fac Gar Fac Gar Fac Gar Robot Analysis Total 3 | . . . . . . . . . . . . . . . . . . 1 2 . . . . . . . . Derelict Logs Recovered 1 | . . 1 . . . . . . . . . . . . . . . . . . . . . . . . . Drone Launches . | . . . . . . . . . . . . . . . . . . . . . . . . . . . . Drone Recoveries . | . . . . . . . . . . . . . . . . . . . . . . . . . . . . Exploration | -11 -10 -10 -10 -9 -8 -8 -8 -8 -7 -7 -7 -7 -7 -7 -6 -6 -6 -6 -6 -6 -6 -5 -5 -5 -5 -4 -4 ------------- Run | Scr Mat Min Exi Min Mat Gar Mat Gar Fac Was Fac Gar Fac Gar Fac Was Fac Ext Cet Arc Hub Fac Gar Fac Gar Fac Gar Turns Passed 30257 | 72 765 191 579 287 2399 514 414 1036 170 511 2088 346 239 1332 1216 657 3289 1319 910 813 2531 99 1144 3292 1177 2731 136 Spaces Moved 12002 | 62 455 97 319 145 922 288 174 409 74 192 908 145 111 563 480 256 1301 599 309 339 760 42 432 1056 494 1001 69 Core 15 | 1 . . . . . . . . . . . . . . . . . . . . . . . 14 . . . Treads 10477 | . 215 97 319 145 703 . 127 409 74 144 908 145 111 563 480 256 1301 599 309 339 760 42 432 762 494 743 . Legs . | . . . . . . . . . . . . . . . . . . . . . . . . . . . . Wheels 903 | 61 240 . . . 219 288 47 . . 48 . . . . . . . . . . . . . . . . . Hover 607 | . . . . . . . . . . . . . . . . . . . . . . . . 280 . 258 69 Flight . | . . . . . . . . . . . . . . . . . . . . . . . . . . . . Fastest Speed 50 | 50 80 180 180 180 130 130 130 200 200 180 180 180 180 180 180 200 200 200 200 200 200 200 200 180 200 126 96 Average Speed 191 | 79 133 180 180 180 183 130 181 216 200 182 180 194 186 191 192 200 200 200 200 200 200 200 200 231 201 183 114 Slowest Speed 550 | 80 180 180 180 180 260 130 200 220 200 190 200 200 200 200 200 200 200 200 200 200 200 200 200 550 220 220 126 Overloaded Moves . | . . . . . . . . . . . . . . . . . . . . . . . . . . . . Propulsion Burnouts . | . . . . . . . . . . . . . . . . . . . . . . . . . . . . Robots Hopped . | . . . . . . . . . . . . . . . . . . . . . . . . . . . . Cave-ins Triggered . | . . . . . . . . . . . . . . . . . . . . . . . . . . . . Exploration Rate (%) 47 | 3 86 29 70 31 82 46 23 78 4 71 26 36 5 70 16 97 41 78 77 82 73 2 52 22 73 23 42 Regions Visited 27 Branch Regions 7 Pre-discovered Areas 2 | . . 1 . 1 . . . . . . . . . . . . . . . . . . . . . . . Known Exits Taken 12 | . . . . . 1 . 1 . . . 1 . 1 . . . 1 1 1 1 1 1 . 1 . 1 . Unknown Exits Taken 5 | 1 1 1 1 1 . . . . . . . . . . . . . . . . . . . . . . . Scrap Searched 2 | . . 1 . 1 . . . . . . . . . . . . . . . . . . . . . . . Spaces Dug 352 | . . . . . 48 . 7 30 . . 34 . 7 18 15 . 51 1 . . 37 3 . 47 . 36 18 Terrain Destroyed 2123 | . 10 . . 5 141 . 53 96 . 13 38 . 7 156 81 . 169 3 74 12 800 3 78 136 57 150 41 Melee 272 | . . . . . 40 . 7 2 . . 34 . 7 4 15 . 50 1 . . 27 3 . 46 . 36 . Projectile 146 | . . . . . . . 1 . . . 4 . . 1 3 . 10 . 13 12 61 . 2 28 1 10 . AOE 1705 | . 10 . . 5 101 . 45 94 . 13 . . . 151 63 . 109 2 61 . 712 . 76 62 56 104 41 Actions | -11 -10 -10 -10 -9 -8 -8 -8 -8 -7 -7 -7 -7 -7 -7 -6 -6 -6 -6 -6 -6 -6 -5 -5 -5 -5 -4 -4 --------- Run | Scr Mat Min Exi Min Mat Gar Mat Gar Fac Was Fac Gar Fac Gar Fac Was Fac Ext Cet Arc Hub Fac Gar Fac Gar Fac Gar Total 16813 | 75 530 104 327 167 1329 382 234 490 95 285 1229 188 128 745 675 334 1736 697 492 401 1414 52 607 1659 632 1700 106 Wait 1540 | 1 4 . . 15 145 33 16 3 . . 126 6 . 43 48 2 104 53 22 11 335 1 50 197 36 288 1 Move 11981 | 61 454 96 318 144 922 286 174 407 74 191 908 144 111 562 480 255 1300 598 308 338 759 42 431 1056 492 1001 69 Hop . | . . . . . . . . . . . . . . . . . . . . . . . . . . . . Pick Up 283 | 4 15 3 5 1 28 . 4 6 3 6 17 . 1 18 10 4 25 2 18 3 17 . 13 28 18 34 . Fast Attach 115 | 6 1 . . . 8 . 3 . 1 1 9 1 . 4 2 3 11 2 9 1 10 . 4 19 2 18 . Attach 242 | . 3 . . 1 14 2 2 1 4 1 16 . 3 16 15 . 27 . 2 2 21 4 6 38 9 51 4 Detach 159 | . 1 . . . 2 . 2 1 . . 14 3 . 11 10 1 23 . 4 1 14 1 2 35 6 26 2 Swap 477 | . 6 . . 3 29 3 8 13 1 10 21 8 2 18 28 5 50 9 27 7 42 1 21 73 16 69 7 Drop 257 | . 3 . 4 . 12 . 3 . 7 13 26 1 1 11 4 8 32 4 20 2 14 . 10 37 9 36 . Fire 1234 | 3 42 5 . 3 113 26 14 49 5 31 32 19 3 50 59 19 86 28 82 36 169 . 57 120 34 136 13 Melee 440 | . . . . . 56 . 8 4 . 32 56 . 7 8 19 37 78 1 . . 30 3 3 56 . 40 2 Ram 1 | . . . . . . . . . . . . . . . . . . . . . . . . . . 1 . Kick . | . . . . . . . . . . . . . . . . . . . . . . . . . . . . Crush 1 | . 1 . . . . . . . . . . . . . . . . . . . . . . . . . . Escape Stasis 83 | . . . . . . 32 . 6 . . 4 6 . 4 . . . . . . 3 . 10 . 10 . 8 Rewire . | . . . . . . . . . . . . . . . . . . . . . . . . . . . . Trap . | . . . . . . . . . . . . . . . . . . . . . . . . . . . . Miscellaneous . | . . . . . . . . . . . . . . . . . . . . . . . . . . . . Route ------- -11/Scrapyard -10/Materials (discovered 5 exits: [*Mat x3] / [*Min x2]) -10/Mines -10/Exiles -9/Mines -8/Materials (discovered 2 exits: *Fac / Gar) -8/Garrison (discovered 2 exits: *Mat x2) -8/Materials (discovered 2 exits: *Fac / Gar) -8/Garrison (discovered 3 exits: *Fac x3) -7/Factory -7/Waste -7/Factory (discovered 5 exits: *Fac x3 / *Low / Gar) -7/Garrison -7/Factory -7/Garrison (discovered 2 exits: *Fac x2) -6/Factory -6/Waste -6/Factory (discovered 4 exits: Fac / *Low x2 / *Ext) -6/Extension (discovered 2 exits: *Fac / *Cet) -6/Cetus (discovered 2 exits: *Fac / *Arc) -6/Archives (discovered 3 exits: *Fac / *Hub x2) -6/Hub_04(d) (discovered 4 exits: *Fac x4) -5/Factory -5/Garrison (discovered 2 exits: *Fac x2) -5/Factory (discovered 2 exits: *Fac / Gar) -5/Garrison (discovered 3 exits: *Fac x3) -4/Factory (discovered 3 exits: *Res x2 / Gar) -4/Garrison History --------- Turn | Location | Event 12 | -11/Scrapyard | Discovered new exit (range 16) 73 | -11/Scrapyard | Entered Materials 121 | -10/Materials | Discovered new exit (range 6) 198 | -10/Materials | Discovered new exit (range 15) 421 | -10/Materials | Core integrity fell below 50% 455 | -10/Materials | Discovered new exit (range 6) 520 | -10/Materials | Build established: Hauler-Mutant 723 | -10/Materials | Discovered new exit (range 16) 814 | -10/Materials | Discovered new exit (range 11) 838 | -10/Materials | Entered Mines 921 | -10/Mines | Learned location of Zion (-7) 1022 | -10/Mines | Deemed a non-threat by the Exiles lab entrance 1022 | -10/Mines | Discovered new exit (range 5) 1029 | -10/Mines | Entered Exiles 1078 | -10/Exiles | Met 8R-AWN 1105 | -10/Exiles | Met EX-HEX 1206 | -10/Exiles | Met EX-DEC 1341 | -10/Exiles | Met EX-BIN 1362 | -10/Exiles | Aligned with FarCom system 1364 | -10/Exiles | Given EX-Vault access code 1411 | -10/Exiles | Opened EX-Vault 1423 | -10/Exiles | Found Supersonic Drone Bay 1425 | -10/Exiles | Found Skeleton Box 1436 | -10/Exiles | Found Gui. Plasma Cannon 1471 | -10/Exiles | Warned to stay clear of 0b10 Research branches 1488 | -10/Exiles | Exiles lab attacked by MAIN.C 1588 | -10/Exiles | Discovered new exit (range 12) 1608 | -10/Exiles | Stole three prototypes: Skeleton Box, Supersonic Drone Bay, Gui. Plasma Cannon 1608 | -10/Exiles | Entered Mines 1662 | -9/Mines | Assembled infested the area 1880 | -9/Mines | Learned location of Storage (-9) 1881 | -9/Mines | Discovered new exit (range 9) 1895 | -9/Mines | Entered Materials 1895 | -8/Materials | Evolved 4 slots: Utility x4 2483 | -8/Materials | Discovered new exit (range 16) 2915 | -8/Materials | Build established: Hauler-Assassin 3679 | -8/Materials | Garrison activated, responded to threat 3715 | -8/Materials | Lost 3 parts (1p1n1w) 3779 | -8/Materials | Lost 4 parts (1p1u2w) 3786 | -8/Materials | Destroyed 8 combat bots 3847 | -8/Materials | Garrison activated, responded to threat 4031 | -8/Materials | Build established: Hauler-Mutant 4128 | -8/Materials | Core integrity fell below 50% 4294 | -8/Materials | Identified exit to Garrison 4294 | -8/Materials | Entered Garrison 4412 | -8/Garrison | Triggered checkpoint 4470 | -8/Garrison | Triggered checkpoint 4544 | -8/Garrison | Lost 3 parts (1p2w) 4652 | -8/Garrison | Discovered new exit (range 9) 4724 | -8/Garrison | Triggered checkpoint 4772 | -8/Garrison | Discovered new exit (range 14) 4801 | -8/Garrison | Installed Relay Interface Framework 4808 | -8/Garrison | Entered Materials 4978 | -8/Materials | Discovered new exit (range 15) 5222 | -8/Materials | Identified exit to Garrison 5222 | -8/Materials | Entered Garrison 5394 | -8/Garrison | Triggered checkpoint 5520 | -8/Garrison | Discovered new exit (range 10) 5610 | -8/Garrison | Triggered checkpoint 5715 | -8/Garrison | Discovered new exit (range 11) 5828 | -8/Garrison | Triggered checkpoint 5963 | -8/Garrison | Discovered new exit (range 5) 5988 | -8/Garrison | Expanded RIF knowledge: Coupler Efficiency 6058 | -8/Garrison | Triggered checkpoint 6061 | -8/Garrison | Core integrity fell below 20% 6167 | -8/Garrison | Garrison Relay disabled 6258 | -8/Garrison | Entered Factory 6258 | -7/Factory | Evolved 2 slots: Utility x2 6260 | -7/Factory | FarCom data flow suspended 6428 | -7/Factory | Sucked down chute 6428 | -7/Factory | Entered Waste 6453 | -7/Waste | Spotted C-40 Crusher 6455 | -7/Waste | Spotted C-40 Crusher 6471 | -7/Waste | Spotted C-40 Crusher 6481 | -7/Waste | Build established: Bothacker-Mutant 6519 | -7/Waste | Spotted C-40 Crusher 6545 | -7/Waste | Spotted C-40 Crusher 6547 | -7/Waste | Spotted C-40 Crusher 6549 | -7/Waste | Destroyed C-40 Crusher 6576 | -7/Waste | Destroyed C-40 Crusher 6585 | -7/Waste | Destroyed C-40 Crusher 6631 | -7/Waste | Destroyed C-40 Crusher 6848 | -7/Waste | Discovered new exit (range 13) 6895 | -7/Waste | Destroyed C-40 Crusher 6907 | -7/Waste | Found Damper Plating 6939 | -7/Waste | Entered Factory 7320 | -7/Factory | Discovered new exit (range 16) 7345 | -7/Factory | Identified exit to Lower Caves 7614 | -7/Factory | Build established: Bothacker-Assassin 7770 | -7/Factory | Discovered new exit (range 8) 8487 | -7/Factory | Discovered new exit (range 12) 8734 | -7/Factory | Discovered new exit (range 8) 8744 | -7/Factory | Identified exit to Factory 9027 | -7/Factory | Identified exit to Garrison 9027 | -7/Factory | Entered Garrison 9036 | -7/Garrison | Expanded RIF knowledge: Autooverride 9223 | -7/Garrison | Triggered checkpoint 9266 | -7/Garrison | Build established: Bothacker-Mutant 9333 | -7/Garrison | Discovered new exit (range 9) 9371 | -7/Garrison | Identified exit to Factory 9373 | -7/Garrison | Entered Factory 9612 | -7/Factory | Identified exit to Garrison 9612 | -7/Factory | Entered Garrison 9706 | -7/Garrison | Phase Generator disabled 9948 | -7/Garrison | Triggered checkpoint 10035 | -7/Garrison | Triggered checkpoint 10177 | -7/Garrison | Garrison Relay disabled 10190 | -7/Garrison | Triggered checkpoint 10369 | -7/Garrison | Lost 3 parts (2u1w) 10403 | -7/Garrison | Garrison Relay disabled 10674 | -7/Garrison | Discovered exit to Factory (range 12) 10890 | -7/Garrison | Discovered exit to Factory (range 15) 10930 | -7/Garrison | Expanded RIF knowledge: Autooverride 10944 | -7/Garrison | Entered Factory 10944 | -6/Factory | Evolved 2 slots: Utility x2 11491 | -6/Factory | Garrison activated, responded to threat 11644 | -6/Factory | First assault squad dispatched 11664 | -6/Factory | Build established: Botlord-Mutant 11776 | -6/Factory | System corruption reached 10% 11806 | -6/Factory | Lost 4 parts (1p2u1w) 12160 | -6/Factory | Sucked down chute 12160 | -6/Factory | Entered Waste 12175 | -6/Waste | 1 allies followed down the chute 12175 | -6/Waste | EMP discharged 12213 | -6/Waste | Found Prototype Launcher 12214 | -6/Waste | Identified Mni. Smartbomb Launcher 12233 | -6/Waste | Spotted C-40 Crusher 12235 | -6/Waste | Spotted C-40 Crusher 12248 | -6/Waste | Spotted C-40 Crusher 12248 | -6/Waste | Spotted C-40 Crusher 12267 | -6/Waste | Allies destroyed C-40 Crusher 12275 | -6/Waste | EMP discharged 12286 | -6/Waste | Found Damper Plating 12309 | -6/Waste | Destroyed C-40 Crusher 12353 | -6/Waste | Spotted C-40 Crusher 12375 | -6/Waste | EMP discharged 12409 | -6/Waste | Destroyed C-40 Crusher 12468 | -6/Waste | Destroyed C-40 Crusher 12475 | -6/Waste | EMP discharged 12483 | -6/Waste | Spotted C-40 Crusher 12518 | -6/Waste | Destroyed C-40 Crusher 12527 | -6/Waste | Found Damper Plating 12575 | -6/Waste | EMP discharged 12640 | -6/Waste | Destroyed C-40 Crusher 12675 | -6/Waste | EMP discharged 12775 | -6/Waste | EMP discharged 12783 | -6/Waste | Discovered new exit (range 13) 12817 | -6/Waste | Entered Factory 13033 | -6/Factory | Discovered new exit (range 110) 13279 | -6/Factory | Discovered new exit (range 9) 13371 | -6/Factory | Build established: Bothacker-Mutant 13548 | -6/Factory | Repaired Mni. Smartbomb Launcher? 13879 | -6/Factory | Garrison activated, responded to threat 14746 | -6/Factory | Discovered new exit (range 11) 14764 | -6/Factory | Identified exit to Lower Caves 15099 | -6/Factory | Discovered exit to Lower Caves (range 6) 15150 | -6/Factory | Found Launcher Loader 15267 | -6/Factory | First assault squad dispatched 15363 | -6/Factory | Fabricated Hvy. Treads? 16104 | -6/Factory | Identified exit to Extension 16106 | -6/Factory | Entered Extension 16173 | -6/Extension | Rescued a captive Derelict 16243 | -6/Extension | Rescued a captive Derelict 16382 | -6/Extension | Rescued a captive Derelict 16382 | -6/Extension | Rescued a captive Derelict 16930 | -6/Extension | Spotted B-75 Beast 16948 | -6/Extension | Allies destroyed B-75 Beast 16960 | -6/Extension | Spotted B-75 Beast 16963 | -6/Extension | Allies destroyed B-75 Beast 17025 | -6/Extension | Rescued A7 17226 | -6/Extension | Rescued a captive Derelict 17368 | -6/Extension | Repaired Hrd. Heavy Armor Plating 17406 | -6/Extension | Discovered new exit (range 10) 17408 | -6/Extension | Discovered new exit (range 6) 17418 | -6/Extension | Identified exit to Cetus 17425 | -6/Extension | Entered Cetus 17425 | -6/Cetus | Accompanied by 5 allies 17430 | -6/Cetus | Acquired a Cetus Manufacturing Module code from A7 17454 | -6/Cetus | Spotted Cetus Guard 17454 | -6/Cetus | Spotted Cetus Guard 17459 | -6/Cetus | Spotted Cetus Guard 17464 | -6/Cetus | Destroyed Cetus Guard 17464 | -6/Cetus | Spotted Cetus Guard 17470 | -6/Cetus | Destroyed Cetus Guard 17471 | -6/Cetus | Allies destroyed Cetus Guard 17477 | -6/Cetus | Allies destroyed Cetus Guard 17748 | -6/Cetus | Failed to start Cetus Manufacturing Module 17775 | -6/Cetus | Door terminal overloaded 17814 | -6/Cetus | Escorted A7 to Cetus Mainframe 17837 | -6/Cetus | Discovered new exit (range 16) 17930 | -6/Cetus | Spotted Cetus Guard 17930 | -6/Cetus | Spotted Cetus Guard 17938 | -6/Cetus | Allies destroyed Cetus Guard 17938 | -6/Cetus | Spotted Cetus Guard 17942 | -6/Cetus | Destroyed Cetus Guard 17942 | -6/Cetus | Destroyed Cetus Guard 17942 | -6/Cetus | Spotted Cetus Guard 17946 | -6/Cetus | Destroyed Cetus Guard 17973 | -6/Cetus | Discovered new exit (range 15) 18066 | -6/Cetus | Met Revision 17 18106 | -6/Cetus | Destroyed A7 18108 | -6/Cetus | Extracted ID and sensor layout for unrecognized location from A7's data core 18132 | -6/Cetus | Found Prototype Protection 18132 | -6/Cetus | Identified Med. Regenerative Plating 18333 | -6/Cetus | Identified exit to Archives 18335 | -6/Cetus | Entered Archives 18574 | -6/Archives | Discovered new exit (range 13) 18610 | -6/Archives | Unable to access archive contents 18710 | -6/Archives | Discovered new exit (range 14) 18732 | -6/Archives | Discovered new exit (range 16) 18784 | -6/Archives | Identified exit to Hub_04(d) 19148 | -6/Archives | Entered Hub_04(d) 19491 | -6/Hub_04(d) | Build established: Bothacker-Assassin 19535 | -6/Hub_04(d) | Discovered new exit (range 17) 19632 | -6/Hub_04(d) | Spotted B-75 Beast 19902 | -6/Hub_04(d) | Build established: Bothacker-Mutant 19947 | -6/Hub_04(d) | Discovered new exit (range 10) 20043 | -6/Hub_04(d) | Core integrity fell below 50% 20085 | -6/Hub_04(d) | Lost 3 parts (1p1u1w) 20253 | -6/Hub_04(d) | Discovered new exit (range 16) 20391 | -6/Hub_04(d) | Lost 3 parts (2u1w) 20502 | -6/Hub_04(d) | Identified exit to Factory 20548 | -6/Hub_04(d) | First assault squad dispatched 20887 | -6/Hub_04(d) | Discovered exit to Factory (range 12) 21007 | -6/Hub_04(d) | Network Hub disabled 21077 | -6/Hub_04(d) | Spotted Lightning 21086 | -6/Hub_04(d) | Spotted Lightning 21094 | -6/Hub_04(d) | Spotted Lightning 21126 | -6/Hub_04(d) | Destroyed Lightning 21151 | -6/Hub_04(d) | Spotted Lightning 21152 | -6/Hub_04(d) | Destroyed Lightning 21152 | -6/Hub_04(d) | Spotted Lightning 21165 | -6/Hub_04(d) | Destroyed Lightning 21183 | -6/Hub_04(d) | Destroyed Lightning 21191 | -6/Hub_04(d) | Spotted Lightning 21202 | -6/Hub_04(d) | Destroyed Lightning 21214 | -6/Hub_04(d) | Destroyed Lightning 21231 | -6/Hub_04(d) | Found Prototype Energy Cannon 21236 | -6/Hub_04(d) | Found Prototype Energy Cannon 21241 | -6/Hub_04(d) | Found Prototype Device 21246 | -6/Hub_04(d) | Identified EM Dispersion Field 21251 | -6/Hub_04(d) | Found Prototype Device 21251 | -6/Hub_04(d) | Identified Exp. Phase Shifter 21283 | -6/Hub_04(d) | Found Prototype Processor 21301 | -6/Hub_04(d) | Network Hub disabled 21409 | -6/Hub_04(d) | Build established: Hauler-Mutant 21446 | -6/Hub_04(d) | Identified EMDS (x2) 21461 | -6/Hub_04(d) | Network Hub disabled 21461 | -6/Hub_04(d) | Network Hub disabled 21468 | -6/Hub_04(d) | Spotted Lightning 21482 | -6/Hub_04(d) | Spotted Lightning 21500 | -6/Hub_04(d) | Spotted Lightning 21513 | -6/Hub_04(d) | Spotted Lightning 21530 | -6/Hub_04(d) | Spotted Lightning 21540 | -6/Hub_04(d) | Spotted Lightning 21551 | -6/Hub_04(d) | Destroyed Lightning 21566 | -6/Hub_04(d) | Destroyed Lightning 21679 | -6/Hub_04(d) | Entered Factory 21679 | -5/Factory | Evolved 2 slots: Utility x2 21778 | -5/Factory | Identified exit to Garrison 21778 | -5/Factory | Entered Garrison 22097 | -5/Garrison | Triggered checkpoint 22102 | -5/Garrison | Spotted B-75 Beast 22106 | -5/Garrison | Triggered checkpoint 22160 | -5/Garrison | Destroyed B-75 Beast 22178 | -5/Garrison | Triggered checkpoint 22188 | -5/Garrison | Lost 3 parts (2u1w) 22268 | -5/Garrison | Triggered checkpoint 22292 | -5/Garrison | Garrison Relay disabled 22499 | -5/Garrison | Discovered new exit (range 10) 22601 | -5/Garrison | Build established: Bothacker-Mutant 22653 | -5/Garrison | Discovered new exit (range 12) 22673 | -5/Garrison | Identified exit to Factory 22687 | -5/Garrison | Expanded RIF knowledge: Program Shield 22751 | -5/Garrison | Triggered checkpoint 22797 | -5/Garrison | Garrison Relay disabled 22922 | -5/Garrison | Entered Factory 23501 | -5/Factory | Build established: Botlord-Assassin 23789 | -5/Factory | Repaired Mni. Smartbomb Launcher 23855 | -5/Factory | Discovered new exit (range 5) 23924 | -5/Factory | Identified exit to Factory 24161 | -5/Factory | Build established: Botlord-Mutant 25021 | -5/Factory | Repaired Centrium Heavy Treads 25067 | -5/Factory | Repaired Lyr. Heavy Armor Plating 25168 | -5/Factory | Identified Exp. Targeting Computer 25573 | -5/Factory | Fabricated Hcp. Storage Unit (x1) 25651 | -5/Factory | Local fabrication network quarantined 25686 | -5/Factory | Fabricated Centrium Heavy Treads? 25890 | -5/Factory | Spotted B-75 Beast 25952 | -5/Factory | Garrison activated, responded to threat 25985 | -5/Factory | Destroyed B-75 Beast 26214 | -5/Factory | Identified exit to Garrison 26214 | -5/Factory | Entered Garrison 26425 | -5/Garrison | Build established: Bothacker-Mutant 26490 | -5/Garrison | Triggered checkpoint 26515 | -5/Garrison | Triggered checkpoint 26557 | -5/Garrison | Triggered checkpoint 26578 | -5/Garrison | Destroyed 10 combat bots 26695 | -5/Garrison | Discovered exit to Factory (range 15) 26825 | -5/Garrison | Garrison Relay disabled 26984 | -5/Garrison | Discovered exit to Factory (range 10) 27128 | -5/Garrison | Discovered exit to Factory (range 10) 27134 | -5/Garrison | Build established: Botlord-Mutant 27156 | -5/Garrison | Expanded RIF knowledge: Autoassimilate 27206 | -5/Garrison | Triggered checkpoint 27281 | -5/Garrison | Garrison Relay disabled 27391 | -5/Garrison | Entered Factory 27391 | -4/Factory | Evolved 2 slots: Utility x2 27677 | -4/Factory | First assault squad dispatched 27855 | -4/Factory | System corruption reached 10% 27901 | -4/Factory | Destroyed 13 combat bots 27904 | -4/Factory | Lost 13 parts (1p1n11u) 28079 | -4/Factory | Discovered new exit (range 60) 28355 | -4/Factory | Fabricated Exp. Sensor Array? 28966 | -4/Factory | P-70 Sage assimilated allied Archangel 7a 28990 | -4/Factory | Repaired Centrium Heavy Treads? 29160 | -4/Factory | Repaired Quantum Reactor? 29509 | -4/Factory | Discovered new exit (range 4) 29517 | -4/Factory | Identified exit to Research 29634 | -4/Factory | Build established: Bothacker-Mutant 29863 | -4/Factory | Lost 5 parts (4u1w) 30122 | -4/Factory | Identified exit to Garrison 30122 | -4/Factory | Entered Garrison 30170 | -4/Garrison | Triggered checkpoint 30175 | -4/Garrison | Triggered checkpoint 30183 | -4/Garrison | Spotted B-86 Titan 30196 | -4/Garrison | Core integrity fell below 50% 30228 | -4/Garrison | Destroyed 8 combat bots 30241 | -4/Garrison | Core integrity fell below 20% 30258 | -4/Garrison | Destroyed by G-67 Veteran with Electrolaser Last Messages --------------- 30238_ Field strength at 3. 30239_ Stasis field depleted. 30240_ Field strength at 87. 30240_ Penetrated by Slug. 30240_ Slug penetrates Wall. 30240_ Penetrated by Slug. 30240_ Adv. Signal Interpreter destroyed. 30240_ Penetrated by Slug. 30241_ Field strength at 38. 30242_ Imp. Gyrokinetic Inverter destroyed. 30242_ Field strength at 20. 30243_ Exp. Targeting Computer destroyed. 30243_ Field strength at 2. 30243_ Stasis field depleted. 30243_ Penetrated by Slug. 30243_ Slug penetrates Wall. 30243_ Penetrated by Slug. 30243_ Slug penetrates Wall. 30243_ Mic. Fission Core destroyed. 30254_ System corrupted: Tesla Rifle targeting data glitched. Map ----- +----------------------------------------------------+ | ?????????????????????????????????????????????????? | | ?????????????????????????????????????????????????? | | ?????????????????????????????????????????????????? | | ?????????????????????????????????????????????????? | | ?????????????????????????????????????????????????? | | ?????????????????????????????????????????????????? | | ?????????????????????????????????????????????????? | | ?????????????????????????????????????????????????? | | ?????????????????????????????????????????????????? | | ?????????????????????????????????????????????????? | | ?????????????????????????????????????????????????? | | ?????????????????????????????????????????????????? | | ?????????????????????????????????????????????????? | | ?????????????????????????????????????????????????? | | ?????????????????????????????????????????????????? | | ?????????????????????????????????????????????????? | | ?????????????????????????????????????????????????? | | ?????????????????????????????????????????????????? | | ?????????????????????????????????????????????????? | | ????????????????????#????????????????????????????? | | ????????????????????# ????????????????????###????? | | ????????????????????# ?????????????????### ###??? | | ????????????????????# ????????????????# ##?? | | ????????############# ############????# ### | | ?????# g g #??### *% | | ?????# g ;@ #??#=] [= | | ??????????????##"""## g #### #### #??#%= % ### | | ????????????????????# ?????# #????????#*#/! #?? | | ???????????????????????????# #????????#!#!! # # | | ???????????????????????????# #????????#]=[!= # | | ???????????????????????????# #??????###"##[= # | | ???????????????????????????# #??????# # # | | ????????????????# ### #### #### "## # # | | ????????????????# " #### | | ?????????????????#### ^ | | ????????????????????# ^ | | ????????????????????############ ## # ### | | ???????????????????????????????# ## ##?? | | ???????????????????????????????" *% #? | | ???????????????????????????????" =% #? | | ???????????????????????????????" #? | | ???????????????????????????????" #? | | ???????????????????????????????# ## ###? | | ???????????????????????????????# ## ## #??? | | ???????????????????????????????# ?? | | ???????????????????????????????# ? | | ???????????????????????????????# #### | | ???????????????????????????????# ##""""## ##??? | | ???????????????????????????????# #??????? #???? | | ???????????????????????????????# #???????? #???? | +----------------------------------------------------+ Best States ------------- Heat Dissipation 71 Coolant Potential 50 Energy Generation 31 Energy Capacity 1150 Matter Stores 550 Matter Capacity 550 Sight Range 22 Robot Scan Range 30 Terrain Scan Range 20 Terrain Scan Density 10 Jamming Range 16 Power Amplification 30 Additional Mass Support 18 Armor Coverage 2400 Resistance: TH 30 Resistance: EX 50 Resistance: EM 90 Weapon Shielding 33 Phase Shifting 20 Evasion (%) 60 Targeting Accuracy 12 Recoil Reduction 2 Energy Filtering 30 Particle Charging 30 Offensive Hacking 24 Item Schematics ----------------- Lrg. Storage Unit | -10/Materials | Hacked Hcp. Storage Unit | -10/Materials | Hacked Adv. Weight Redist. System | -8/Materials | Scanalyzed Hvy. Treads | -7/Factory | Scanalyzed Hvy. Missile Launcher | -7/Factory | Scanalyzed Imp. Gyrokinetic Inverter | -6/Factory | Scanalyzed Imp. Hacking Suite | -6/Extension | Hacked Centrium Heavy Treads | -5/Factory | Scanalyzed Quantum Reactor | -5/Factory | Scanalyzed Exp. Targeting Computer | -5/Factory | Scanalyzed Mni. Smartbomb Launcher | -5/Factory | Scanalyzed Exp. Sensor Array | -5/Factory | Hacked Exp. Utility Shielding | -5/Factory | Hacked Robot Schematics ------------------ None Fabricated ------------ Hvy. Treads | x2 | -6/Factory Hcp. Storage Unit | x1 | -5/Factory Centrium Heavy Treads | x1 | -5/Factory Exp. Sensor Array | x1 | -4/Factory Alien Tech Used ----------------- None Achievements -------------- None Challenges ------------ None Game ------ Seed EnergyMassMagmablaster Manual? 0 Play Time 06:39:28 Cumulative 868.2 hours Start 2019.12.15 @ 17:58:17 End 2019.12.16 @ 02:47:22 Sessions 3 Manual Loads 0 Difficulty Rogue Special Mode None Game No. 339 Rogue 339 Adventurer 0 Explorer 0 Win Type - Total 21 Types 11/1/7/0/0/0/2 Lore% 95 Gallery% 96 Achievement% 80 Wizard Run 0 Options --------- ASCII 0 Keyboard 0 Movement Vi Keybinds 0 Fullscreen 0 Font 12/Crisp Map View 76x50 Tactical HUD 1 Map Filters NONE Filters NONE Steam 1 RUN: cbda040b-58d5-45a2-837f-953a6146a9f0